bitfinex-derivatives/quotes_BTCF0:USTF0_20251230
["timestamp","ask_amount","ask_price","bid_price","bid_amount"]
[1767113926766,0.0112692,88833.0,88816.0,0.05664]
[1767113927564,0.0112692,88833.0,88816.0,0.05680891]
[1767113928063,0.0112696,88831.0,88816.0,0.05680891]
[1767113928771,0.0958,88839.0,88816.0,0.05680891]
[1767113928966,0.0249955,88838.0,88816.0,0.05680891]
[1767113929171,0.0112699,88828.0,88816.0,0.05680891]
[1767113929464,0.0958,88839.0,88816.0,0.05680891]
[1767113929670,0.0112687,88837.0,88816.0,0.05680891]
[1767113929861,0.0958,88839.0,88788.0,0.08084161]
[1767113929862,0.02499652,88836.0,88788.0,0.08084161]
[1767113930059,0.02499652,88835.0,88789.0,0.05664]
[1767113930258,0.0112677,88845.0,88810.0,0.16761119]
[1767113930472,0.0112695,88831.0,88814.0,0.0112715]
[1767113930672,0.0112695,88831.0,88815.0,0.0958]
[1767113930872,0.0112698,88829.0,88815.0,0.0958]
[1767113931078,0.0112703,88825.0,88815.0,0.0958]
[1767113931279,0.01127,88827.0,88815.0,0.0958]
[1767113931878,0.0112705,88823.0,88815.0,0.0958]
[1767113932071,0.0112707,88822.0,88816.0,0.05664]
[1767113932374,0.0112711,88819.0,88811.0,0.0958]
[1767113932672,0.0112691,88834.0,88811.0,0.15244]
[1767113932865,0.05664,88839.0,88811.0,0.15244]
[1767113932866,0.0112709,88820.0,88811.0,0.15244]
[1767113933061,0.02500115,88819.0,88811.0,0.15244]
[1767113934066,0.011271,88819.0,88811.0,0.15244]
[1767113934361,0.00016891,88824.0,88806.0,0.00016891]
[1767113934565,0.0112718,88813.0,88806.0,0.00016891]
[1767113935871,0.00016891,88824.0,88806.0,0.00016891]
[1767113936170,0.0112718,88813.0,88806.0,1e-08]
[1767113936374,0.00016891,88824.0,88806.0,1e-08]
[1767113936569,0.02499798,88823.0,88806.0,1e-08]
[1767113936770,0.0112716,88815.0,88806.0,1e-08]
[1767113938279,0.0112718,88813.0,88806.0,1e-08]
[1767113938682,0.00016891,88824.0,88806.0,1e-08]
[1767113938879,0.02500012,88823.0,88806.0,1e-08]
[1767113939079,0.02500012,88822.0,88806.0,1e-08]
[1767113939278,0.02500012,88821.0,88806.0,1e-08]
[1767113939576,0.0112717,88814.0,88806.0,1e-08]
[1767113940278,0.0112723,88809.0,88806.0,1e-08]
[1767113940472,0.0112733,88801.0,88787.0,0.05664]
[1767113940877,0.0958,88809.0,88787.0,0.05664]
[1767113941078,0.0112728,88805.0,88787.0,0.067915]
[1767113941476,0.01144171,88805.0,88789.0,0.0112747]
[1767113942077,0.0112731,88803.0,88787.0,0.00016891]
[1767113943183,0.00016891,88805.0,88787.0,0.00016891]
[1767113943778,0.01144171,88805.0,88788.0,0.0112748]
[1767113944174,0.01144171,88805.0,88787.0,0.00016891]
[1767113944582,0.0112731,88803.0,88787.0,0.00016891]
[1767113947186,0.00016891,88805.0,88788.0,0.0112748]
[1767113947383,0.0958,88822.0,88795.0,0.33542312]
[1767113947584,0.0112701,88826.0,88812.0,0.16771156]
[1767113947787,0.0112714,88816.0,88801.0,0.05664]
[1767113947988,0.17898246,88820.0,88801.0,0.0679132]
[1767113948386,0.0112712,88818.0,88801.0,0.05664]
[1767113948691,0.0112712,88818.0,88802.0,0.00016891]
[1767113949583,0.0112715,88815.0,88802.0,0.00016891]
[1767113950088,0.01144001,88819.0,88802.0,0.01144191]
[1767113950277,0.00016891,88819.0,88803.0,0.0112729]
[1767113950479,0.0112704,88824.0,88809.0,0.16771156]
[1767113950680,0.01127,88827.0,88809.0,0.17898366]
[1767113951484,0.01143891,88827.0,88809.0,0.17898366]
[1767113953090,0.10723891,88827.0,88809.0,0.17898366]
[1767113953285,0.01143891,88827.0,88809.0,0.17898366]
[1767113953489,0.10723891,88827.0,88809.0,0.17898366]
[1767113953685,0.09596891,88827.0,88811.0,0.0112719]
[1767113954790,0.00016891,88827.0,88811.0,0.0112719]
[1767113954987,0.011269,88835.0,88819.0,0.0112709]
[1767113955184,0.15244,88835.0,88820.0,0.16771156]
[1767113956192,0.0112691,88834.0,88820.0,0.16771156]
[1767113956388,0.15244,88835.0,88819.0,0.00016891]
[1767113956591,0.16771156,88840.0,88819.0,0.00016891]
[1767113956893,0.0112692,88834.0,88819.0,0.00016891]
[1767113957493,0.05664,88833.0,88819.0,0.00016891]
[1767113958196,0.0112687,88838.0,88820.0,0.16771156]
[1767113958395,0.0679087,88838.0,88820.0,0.16771156]
[1767113958586,0.0112687,88838.0,88820.0,0.16771156]
[1767113958786,0.0679087,88838.0,88820.0,0.16771156]
[1767113959194,0.0112687,88838.0,88820.0,0.16771156]
[1767113961299,0.0112687,88838.0,88821.0,0.0112707]
[1767113963896,0.011268,88843.0,88820.0,0.16771156]
[1767113964092,0.15244,88842.0,88830.0,0.16771156]
[1767113964294,0.15123202,88841.0,88830.0,0.16771156]
[1767113964497,0.0958,88840.0,88830.0,0.16771156]
[1767113965207,0.05664,88841.0,88830.0,0.16771156]
[1767113965599,0.05664,88841.0,88825.0,0.0112701]
[1767113966104,0.05664,88841.0,88830.0,0.16771156]
[1767113966999,0.16771156,88860.0,88832.0,0.0112692]
[1767113967303,0.17742016,88859.0,88837.0,0.00016891]
[1767113967504,0.0112672,88849.0,88837.0,0.00016891]
[1767113967702,0.15244,88848.0,88837.0,0.00016891]
[1767113967902,0.0112677,88845.0,88837.0,1e-08]
[1767113968705,0.05664,88844.0,88837.0,1e-08]
[1767113969007,0.0112683,88841.0,88837.0,1e-08]
[1767113969209,0.0112697,88829.0,88819.0,0.05664]
[1767113969405,0.0112693,88833.0,88819.0,0.05664]
[1767113969899,0.0112693,88833.0,88820.0,0.16771156]
[1767113970803,0.0112695,88831.0,88819.0,0.05664]
[1767113972102,0.0112694,88832.0,88819.0,0.05664]
[1767113972613,0.0112694,88832.0,88818.0,0.00016891]
[1767113974625,0.0112694,88832.0,88819.0,0.01125]
[1767113982425,0.05664,88836.0,88819.0,0.01125]
[1767113982725,0.02498416,88835.0,88819.0,0.01125]
[1767113983026,0.0112697,88830.0,88819.0,0.01125]
[1767113983528,0.05664,88836.0,88819.0,0.01125]
[1767113983730,0.02502484,88835.0,88819.0,0.01125]
[1767113984025,0.02502484,88834.0,88819.0,0.01125]
[1767113984226,0.05664,88836.0,88819.0,0.01125]
[1767113984426,0.02503017,88835.0,88819.0,0.01125]
[1767113984628,0.02503017,88834.0,88819.0,0.01125]
[1767113984824,0.05664,88836.0,88819.0,0.01125]
[1767113985025,0.02503105,88835.0,88819.0,0.01125]
[1767113985228,0.0112694,88832.0,88819.0,0.01125]
[1767113986132,0.0112696,88830.0,88819.0,0.01125]
[1767113987131,0.0112692,88833.0,88819.0,0.01125]
[1767113987327,0.0112695,88831.0,88819.0,0.01125]
[1767113987627,0.0112704,88824.0,88818.0,1e-08]
[1767113988526,0.01127,88827.0,88818.0,1e-08]
[1767113992626,0.01143851,88830.0,88818.0,1e-08]
[1767113995236,0.00016891,88830.0,88818.0,1e-08]
[1767113995432,0.00016891,88830.0,88791.0,0.0112744]
[1767113995433,0.0112722,88810.0,88791.0,0.0112744]
[1767113995627,0.0112712,88817.0,88782.0,0.09576]
[1767113995826,0.0112733,88801.0,88783.0,0.09576]
[1767113996036,0.0112695,88831.0,88776.0,0.09576]
[1767113996037,0.0112741,88795.0,88776.0,0.09576]
[1767113996234,0.09576,88799.0,88776.0,0.09576]
[1767113996425,0.0112742,88794.0,88779.0,0.00016891]
[1767113996736,0.00016891,88796.0,88780.0,0.0112759]
[1767114000542,0.00016891,88796.0,88783.0,0.0112754]
[1767114002240,0.00016891,88796.0,88780.0,0.0112759]
[1767114002630,0.00016891,88796.0,88779.0,0.00016891]
[1767114003242,0.00016891,88796.0,88780.0,0.0112758]
[1767114005044,0.00016891,88796.0,88780.0,0.0112759]
[1767114005247,0.00016891,88796.0,88779.0,0.00016891]
[1767114005439,0.00016891,88796.0,88780.0,0.0112759]
[1767114006245,0.00016891,88796.0,88779.0,0.00016891]
[1767114006436,0.0112755,88784.0,88779.0,1e-08]
[1767114006946,0.00016891,88796.0,88779.0,1e-08]
[1767114007242,0.0112746,88791.0,88779.0,1e-08]
[1767114007442,0.0112742,88794.0,88779.0,1e-08]
[1767114007746,0.0112748,88789.0,88779.0,1e-08]
[1767114008550,0.0112751,88787.0,88779.0,1e-08]
[1767114009634,0.0112754,88785.0,88779.0,1e-08]
[1767114009862,0.0958,88784.0,88779.0,1e-08]
[1767114010542,0.0112755,88783.0,88779.0,1e-08]
[1767114010748,0.0112759,88781.0,88779.0,1e-08]
[1767114010948,0.0112758,88782.0,88779.0,1e-08]
[1767114011145,0.0958,88784.0,88779.0,1e-08]
[1767114011339,0.05664,88783.0,88779.0,1e-08]
[1767114011545,0.0112748,88789.0,88779.0,1e-08]
[1767114011745,0.011275,88787.0,88779.0,1e-08]
[1767114011946,0.15244,88786.0,88779.0,1e-08]
[1767114015342,0.1637152,88786.0,88779.0,1e-08]
[1767114016738,0.15244,88785.0,88779.0,1e-08]
[1767114016943,0.0958,88784.0,88779.0,1e-08]
[1767114022760,0.05664,88783.0,88779.0,1e-08]
[1767114025063,0.0112759,88780.0,88779.0,1e-08]
[1767114025267,0.0112767,88774.0,88761.0,0.0958]
[1767114025762,0.05664,88776.0,88761.0,0.0958]
[1767114025955,0.0679165,88776.0,88761.0,0.0958]
[1767114026157,0.0112771,88771.0,88760.0,0.00016891]
[1767114026357,0.0112771,88771.0,88753.0,0.0112792]
[1767114026358,0.0112777,88766.0,88747.0,0.09584]
[1767114026658,0.05664,88768.0,88746.0,0.0112801]
[1767114026858,0.05664,88768.0,88739.0,0.09598193]
[1767114026859,0.0112781,88763.0,88743.0,0.0112806]
[1767114027054,0.0112777,88767.0,88748.0,0.0112799]
[1767114027256,0.0112777,88767.0,88749.0,0.000169]
[1767114027456,0.05664,88768.0,88749.0,0.000169]
[1767114027651,0.00016891,88777.0,88754.0,0.0112791]
[1767114027652,0.05664,88767.0,88754.0,0.0112791]
[1767114027862,0.05664,88771.0,88751.0,0.0112796]
[1767114028057,0.05664,88773.0,88751.0,0.0112796]
[1767114028264,1e-08,88777.0,88750.0,0.16773233]
[1767114028453,1e-08,88777.0,88749.0,0.096009]
[1767114028454,0.011272,88811.0,88767.0,0.16773233]
[1767114028655,0.0112716,88815.0,88796.0,0.0112739]
[1767114028855,0.05348,88820.0,88796.0,0.0112739]
[1767114028856,0.02498213,88814.0,88796.0,0.0112739]
[1767114029056,0.0112714,88816.0,88795.0,0.107114]
[1767114029255,0.06044937,88841.0,88795.0,0.09584]
[1767114029461,0.12081554,88840.0,88813.0,0.0112717]
[1767114029770,0.0112665,88854.0,88809.0,0.0001689]
[1767114029771,0.0112689,88836.0,88814.0,0.09584]
[1767114029970,0.02497554,88835.0,88814.0,0.09584]
[1767114030263,0.0112692,88833.0,88814.0,0.09584]
[1767114030660,0.0001689,88832.0,88814.0,0.09584]
[1767114030961,0.0001689,88832.0,88809.0,0.0001689]
[1767114031268,0.05664,88831.0,88799.0,0.0112734]
[1767114031464,0.0112698,88829.0,88805.0,0.0112727]
[1767114031660,0.0112698,88829.0,88815.0,0.01125]
[1767114031861,0.0001689,88832.0,88815.0,0.01125]
[1767114032064,0.02493934,88831.0,88815.0,0.0114189]
[1767114032260,0.02493934,88830.0,88815.0,0.0114189]
[1767114032570,0.0001689,88832.0,88820.0,0.16758689]
[1767114032760,0.024925,88831.0,88815.0,0.0114189]
[1767114033074,0.0112697,88829.0,88815.0,0.0114189]
[1767114034363,0.0001689,88832.0,88815.0,0.0114189]
[1767114034364,0.0112701,88826.0,88815.0,0.0114189]
[1767114035173,0.0001689,88832.0,88815.0,0.0114189]
[1767114036264,0.0001689,88832.0,88816.0,0.0958]
[1767114036466,0.0112697,88830.0,88816.0,0.0958]
[1767114036667,0.0001689,88832.0,88816.0,0.0958]
[1767114036866,0.0001689,88832.0,88820.0,0.16758689]
[1767114037067,0.0958,88845.0,88824.0,0.0112703]
[1767114037266,0.02488842,88844.0,88828.0,0.16758689]
[1767114037566,0.02488842,88843.0,88828.0,0.16758689]
[1767114037771,0.15244,88845.0,88828.0,0.16758689]
[1767114037967,0.0112673,88848.0,88828.0,0.26338689]
[1767114038169,0.0112676,88846.0,88829.0,0.0001689]
[1767114038575,0.02486553,88845.0,88829.0,0.0001689]
[1767114038775,0.0001689,88847.0,88829.0,0.0001689]
[1767114039167,0.0114363,88847.0,88829.0,0.0001689]
[1767114039369,0.0112686,88838.0,88829.0,0.0001689]
[1767114039570,0.0001689,88847.0,88815.0,0.0225214]
[1767114039769,0.02455662,88846.0,88816.0,0.15244]
[1767114039970,0.0001689,88847.0,88816.0,0.15244]
[1767114040277,0.02455664,88846.0,88817.0,0.0112712]
[1767114040475,0.0001689,88847.0,88823.0,0.0001689]
[1767114041166,1e-07,88847.0,88824.0,0.0112703]
[1767114041370,0.0112652,88865.0,88839.0,0.0112683]
[1767114041571,0.0112652,88865.0,88840.0,0.15244]
[1767114041872,0.0112652,88865.0,88841.0,0.0112681]
[1767114042175,0.0112645,88870.0,88845.0,0.0112676]
[1767114042381,0.0001689,88866.0,88849.0,0.0001689]
[1767114042674,0.0112655,88863.0,88849.0,0.0001689]
[1767114043278,0.0001689,88866.0,88849.0,0.0001689]
[1767114043279,0.0112658,88860.0,88849.0,0.0001689]
[1767114043879,0.0001689,88866.0,88849.0,0.0001689]
[1767114044079,0.0112665,88854.0,88837.0,0.05176]
[1767114044273,0.0112661,88857.0,88837.0,0.05176]
[1767114044473,0.0112661,88857.0,88839.0,0.0112684]
[1767114044672,0.0112665,88855.0,88837.0,0.05176]
[1767114045076,0.0112665,88855.0,88837.0,0.0519288]
[1767114045275,0.0112659,88859.0,88837.0,0.0631974]
[1767114045772,0.0001689,88866.0,88840.0,0.16753274]
[1767114046377,1e-07,88866.0,88850.0,0.16753274]
[1767114046670,0.02978873,88871.0,88851.0,0.1524]
[1767114046876,0.02978873,88871.0,88854.0,0.0112665]
[1767114047071,0.02978873,88871.0,88851.0,0.1524]
[1767114047072,3e-08,88871.0,88864.0,0.0112652]
[1767114047276,0.3253,88899.0,88866.0,0.0112649]
[1767114047474,0.0112602,88904.0,88866.0,0.0112649]
[1767114047475,0.0001688,88891.0,88874.0,0.0001688]
[1767114048075,0.0112626,88885.0,88874.0,0.0001688]
[1767114048783,0.0112622,88888.0,88874.0,0.0001688]
[1767114049084,0.0001688,88891.0,88874.0,0.0001688]
[1767114049478,0.0112602,88904.0,88874.0,0.0001688]
[1767114049479,0.09576,88902.0,88874.0,0.0001688]
[1767114049678,0.0112613,88896.0,88874.0,0.0114328]
[1767114050074,0.0112571,88929.0,88874.0,0.0001688]
[1767114050381,0.0112605,88902.0,88892.0,0.0001688]
[1767114050583,0.0112604,88903.0,88892.0,0.0001688]
[1767114051183,0.0112612,88897.0,88885.0,0.0566]
[1767114051689,0.0112606,88901.0,88882.0,0.15236]
[1767114052183,0.0112616,88894.0,88883.0,0.0001688]
[1767114052885,0.09576,88903.0,88860.0,0.16753274]
[1767114053185,0.0112653,88864.0,88848.0,0.09576]
[1767114053391,0.0112653,88864.0,88849.0,0.15236]
[1767114053591,0.0112648,88868.0,88849.0,0.15236]
[1767114054191,0.0001688,88867.0,88850.0,0.0001688]
[1767114055287,0.0001688,88867.0,88851.0,0.01125]
[1767114055490,0.0001688,88867.0,88851.0,0.0225169]
[1767114055882,0.0001688,88867.0,88855.0,0.0112663]
[1767114056589,0.0001688,88867.0,88856.0,0.0112662]
[1767114056986,0.0112632,88881.0,88856.0,0.0112662]
[1767114057197,0.0112632,88881.0,88851.0,0.01125]
[1767114057198,0.09576,88886.0,88851.0,0.01125]
[1767114057489,0.1070217,88893.0,88865.0,0.011265]
[1767114057686,0.1070217,88893.0,88868.0,0.0112647]
[1767114057890,0.1070217,88893.0,88868.0,0.1070247]
[1767114058090,0.0001688,88889.0,88872.0,0.0001688]
[1767114058690,0.0112606,88901.0,88872.0,0.0001688]
[1767114058691,0.09576,88898.0,88872.0,0.0001688]
[1767114059796,0.00016868,88894.0,88872.0,0.0001688]
[1767114060780,0.00016868,88894.0,88874.0,0.011264]
[1767114061095,0.0112631,88882.0,88872.0,0.0001688]
[1767114061290,0.00016868,88894.0,88843.0,0.23936]
[1767114061291,0.0112627,88885.0,88843.0,0.23936]
[1767114061594,0.0245448,88884.0,88850.0,0.011267]
[1767114061791,0.0112644,88871.0,88850.0,0.011267]
[1767114062186,0.0001688,88870.0,88852.0,0.0001688]
[1767114062401,0.0001688,88870.0,88853.0,0.0112666]
[1767114063098,0.0001688,88870.0,88852.0,0.0001688]
[1767114063395,0.0001688,88870.0,88858.0,0.0112659]
[1767114063596,0.07468548,88896.0,88858.0,0.0112659]
[1767114063798,0.0112621,88889.0,88866.0,0.0112649]
[1767114063998,0.0112616,88893.0,88859.0,0.0112659]
[1767114064189,0.0112616,88893.0,88868.0,0.0112647]
[1767114064497,0.011262,88890.0,88868.0,0.0112647]
[1767114064690,0.00016868,88888.0,88870.0,0.0001688]
[1767114064887,0.00016868,88888.0,88871.0,0.0112643]
[1767114065085,0.00016868,88888.0,88870.0,0.0114333]
[1767114065688,0.00016868,88888.0,88870.0,0.0001688]
[1767114065893,0.09572,88903.0,88880.0,0.0112631]
[1767114066093,0.09572,88902.0,88883.0,0.0112628]
[1767114066290,0.09572,88905.0,88889.0,0.011262]
[1767114067096,0.09572,88905.0,88888.0,0.0001688]
[1767114067494,0.02459464,88904.0,88866.0,0.0112649]
[1767114067688,0.011262,88891.0,88870.0,0.0112645]
[1767114067894,0.0112622,88888.0,88867.0,0.15236]
[1767114068091,0.0112621,88889.0,88868.0,0.0112647]
[1767114068402,0.09572,88902.0,88867.0,0.15236]
[1767114068586,0.05664,88903.0,88876.0,0.0001688]
[1767114068587,0.0001688,88893.0,88876.0,0.0001688]
[1767114068991,0.0114304,88893.0,88876.0,0.0001688]
[1767114069193,0.05664,88892.0,88850.0,0.16753274]
[1767114069395,0.011262,88890.0,88851.0,0.15236]
[1767114069595,0.011262,88890.0,88851.0,0.16361]
[1767114070104,0.011262,88890.0,88862.0,0.0001688]
[1767114070404,0.09572,88891.0,88863.0,0.1636253]
[1767114070598,0.0112623,88888.0,88862.0,0.0001688]
[1767114070793,0.02458262,88887.0,88862.0,0.0001688]
[1767114071005,0.02458262,88886.0,88862.0,0.0001688]
[1767114071203,0.02458262,88885.0,88862.0,0.0001688]
[1767114071401,0.0112627,88885.0,88863.0,0.0112653]
[1767114071705,0.1069819,88891.0,88862.0,0.0001688]
[1767114071899,0.02459022,88890.0,88862.0,0.0001688]
[1767114072100,0.02459022,88889.0,88862.0,0.0001688]
[1767114072300,0.02459022,88888.0,88862.0,0.0001688]
[1767114072500,0.02459022,88887.0,88870.0,0.0112644]
[1767114072699,0.02459022,88886.0,88870.0,0.0112644]
[1767114072903,0.02459022,88885.0,88870.0,0.0112644]
[1767114073100,0.02459022,88884.0,88870.0,0.0112644]
[1767114073302,0.08123022,88883.0,88870.0,0.0112644]
[1767114073498,0.08123022,88883.0,88862.0,0.0001688]
[1767114073499,0.02459022,88882.0,88873.0,0.0112641]
[1767114073908,0.05664,88888.0,88873.0,0.0112641]
[1767114074098,0.02459382,88887.0,88870.0,0.0112645]
[1767114074405,0.02459382,88886.0,88870.0,0.0112645]
[1767114074602,0.02459382,88885.0,88862.0,0.0001688]
[1767114074803,0.05664,88888.0,88862.0,0.0001688]
[1767114074804,0.0112632,88881.0,88862.0,0.0001688]
[1767114075006,0.02459382,88880.0,88862.0,0.0001688]
[1767114075502,0.05664,88888.0,88870.0,0.0112644]
[1767114075703,0.02460791,88887.0,88870.0,0.0112644]
[1767114075904,0.02460791,88886.0,88862.0,0.0001688]
[1767114076103,0.02460791,88885.0,88862.0,0.0001688]
[1767114076302,0.02460791,88884.0,88869.0,0.0112645]
[1767114076499,0.02460791,88883.0,88872.0,0.0112641]
[1767114076709,0.05664,88888.0,88872.0,0.0112641]
[1767114076906,0.02461662,88887.0,88868.0,0.0112647]
[1767114077105,0.02461662,88886.0,88868.0,0.0112647]
[1767114077300,0.05664,88888.0,88868.0,0.0112647]
[1767114077301,0.02461662,88885.0,88868.0,0.0112647]
[1767114077502,0.02461662,88884.0,88862.0,0.0001688]
[1767114077702,0.02461662,88883.0,88862.0,0.0001688]
[1767114077903,0.05664,88888.0,88852.0,0.09572]
[1767114077904,0.0112652,88865.0,88852.0,0.09572]
[1767114078201,0.011267,88851.0,88829.0,0.0112696]
[1767114078404,0.011267,88851.0,88813.0,0.1007725]
[1767114078405,0.05664,88856.0,88811.0,0.08036391]
[1767114078601,0.08009364,88882.0,88812.0,0.15236]
[1767114078602,0.0112676,88846.0,88812.0,0.15236]
[1767114078807,0.0112681,88842.0,88812.0,0.15236]
[1767114079004,0.0001688,88836.0,88821.0,0.0112707]
[1767114079201,0.0001688,88836.0,88823.0,0.0112704]
[1767114079402,0.0001688,88836.0,88822.0,0.09572]
[1767114080104,0.0001688,88836.0,88822.0,0.15236]
[1767114080304,0.0001688,88836.0,88826.0,0.0112701]
[1767114082410,0.0001688,88836.0,88822.0,0.1636305]
[1767114082605,0.0001688,88836.0,88822.0,0.15236]
[1767114082904,0.0001688,88836.0,88826.0,0.0112701]
[1767114083106,0.0112673,88849.0,88828.0,0.0112697]
[1767114083408,0.09572,88848.0,88837.0,0.0112686]
[1767114083608,0.09572,88847.0,88837.0,0.0112686]
[1767114083809,0.09572,88847.0,88822.0,0.15236]
[1767114083810,0.09576,88847.0,88827.0,0.0112699]
[1767114084307,0.0001688,88846.0,88828.0,0.0001688]
[1767114084507,0.07940014,88849.0,88828.0,0.0001688]
[1767114084705,0.09576,88852.0,88841.0,0.0112682]
[1767114085503,0.05664,88856.0,88841.0,0.0112682]
[1767114085706,0.09576,88855.0,88841.0,0.0112682]
[1767114086418,0.09576,88855.0,88844.0,0.0112678]
[1767114086605,0.09576,88855.0,88840.0,0.011437]
[1767114087511,0.09576,88855.0,88842.0,0.0112679]
[1767114088014,0.09576,88855.0,88840.0,0.0001688]
[1767114091310,0.0112674,88848.0,88832.0,0.09576]
[1767114091510,0.0112674,88848.0,88828.0,0.05664]
[1767114091716,0.0112674,88848.0,88828.0,0.1524]
[1767114091913,0.0112669,88851.0,88829.0,0.0112697]
[1767114092208,0.09576,88855.0,88829.0,0.0112697]
[1767114092423,0.09576,88855.0,88833.0,0.0001688]
[1767114092613,0.1070265,88855.0,88833.0,0.0001688]
[1767114093211,0.0112667,88853.0,88833.0,0.0001688]
[1767114094017,0.0112667,88853.0,88834.0,0.011269]
[1767114094817,0.011267,88851.0,88833.0,0.0001688]
[1767114095016,0.09576,88855.0,88833.0,0.0001688]
[1767114095216,0.011268,88843.0,88833.0,0.0001688]
[1767114096018,0.05664,88845.0,88833.0,0.0001688]
[1767114097713,0.0112678,88844.0,88833.0,0.0001688]
[1767114097919,0.05664,88845.0,88833.0,0.0001688]
[1767114098617,0.0679077,88845.0,88829.0,0.0112696]
[1767114099719,0.05664,88845.0,88831.0,0.0112693]
[1767114099924,0.05664,88845.0,88828.0,0.1525688]
[1767114100622,0.05664,88845.0,88833.0,0.0112691]
[1767114100920,0.05664,88845.0,88828.0,0.1525688]
[1767114101123,0.0001688,88857.0,88845.0,0.0112676]
[1767114101320,0.10025884,88894.0,88828.0,0.1525688]
[1767114101321,0.09576,88871.0,88841.0,0.05664]
[1767114101513,0.0112636,88877.0,88855.0,0.0112663]
[1767114101708,0.1524,88876.0,88855.0,0.0112663]
[1767114102113,0.0112639,88875.0,88855.0,0.0112663]
[1767114102312,0.0001688,88874.0,88856.0,0.0001688]
[1767114103423,0.0001688,88874.0,88857.0,0.011266]
[1767114103924,0.0001688,88874.0,88860.0,0.0112658]
[1767114104715,0.0112635,88879.0,88859.0,0.05664]
[1767114104914,0.0112646,88870.0,88856.0,0.0001688]
[1767114105116,0.09576,88881.0,88856.0,0.0001688]
[1767114105117,0.0112641,88874.0,88856.0,0.1525688]
[1767114105418,0.0112637,88876.0,88856.0,0.1525688]
[1767114105717,0.011264,88874.0,88856.0,0.1525688]
[1767114105922,0.0001688,88875.0,88856.0,0.1525688]
[1767114106122,0.0001688,88875.0,88857.0,0.011266]
[1767114106823,0.0001688,88875.0,88856.0,0.1525688]
[1767114107318,0.0001688,88875.0,88856.0,0.163835]
[1767114108224,0.0001688,88875.0,88863.0,0.0112654]
[1767114109016,0.0001688,88875.0,88860.0,0.0112658]
[1767114109217,0.0001688,88875.0,88857.0,0.0112661]
[1767114109721,0.0001688,88875.0,88860.0,0.0112658]
[1767114110114,0.0112633,88880.0,88860.0,0.0112658]
[1767114110415,0.05664,88883.0,88857.0,0.0112661]
[1767114110610,0.02471892,88882.0,88857.0,0.0112661]
[1767114110818,0.02471892,88882.0,88856.0,0.1525688]
[1767114110819,0.02471892,88881.0,88856.0,0.1525688]
[1767114111122,0.0112646,88870.0,88857.0,0.05664]
[1767114111818,0.0112649,88868.0,88857.0,0.05664]
[1767114112017,0.0112631,88882.0,88857.0,0.05664]
[1767114112222,0.02471649,88881.0,88857.0,0.05664]
[1767114112428,0.02471649,88880.0,88857.0,0.05664]
[1767114112725,0.02471649,88879.0,88857.0,0.05664]
[1767114112926,0.0112642,88873.0,88857.0,0.05664]
[1767114113113,0.05664,88883.0,88859.0,0.0112658]
[1767114113318,0.02471613,88882.0,88870.0,0.0112644]
[1767114113525,0.05664,88883.0,88870.0,0.0112644]
[1767114113817,0.1524,88884.0,88868.0,0.0112646]
[1767114114019,0.09576,88884.0,88868.0,0.0112646]
[1767114114216,0.3253,88900.0,88867.0,0.05664]
[1767114114417,0.0112612,88896.0,88875.0,0.0001688]
[1767114114622,0.0112624,88887.0,88875.0,0.0001688]
[1767114115625,0.0112627,88885.0,88875.0,0.0001688]
[1767114115818,0.0112621,88889.0,88875.0,0.0001688]
[1767114116319,0.0112617,88893.0,88875.0,0.0001688]
[1767114116522,0.0679017,88893.0,88875.0,0.0001688]
[1767114116927,0.0112623,88888.0,88875.0,0.0001688]
[1767114117225,0.05664,88893.0,88875.0,0.0001688]
[1767114117422,0.02507374,88892.0,88867.0,0.05664]
[1767114117617,0.05664,88893.0,88867.0,0.05664]
[1767114117927,0.011263,88882.0,88867.0,0.0112648]
[1767114118430,0.0112634,88879.0,88866.0,0.0001688]
[1767114118615,0.0001688,88883.0,88866.0,0.0001688]
[1767114119328,0.0114318,88883.0,88868.0,0.0112647]
[1767114120333,0.0112635,88879.0,88866.0,0.0001688]
[1767114120527,0.0112649,88868.0,88850.0,0.0112669]
[1767114120723,0.011263,88882.0,88851.0,0.15236]
[1767114120724,0.0112642,88873.0,88851.0,0.15236]
[1767114120921,0.09572,88883.0,88862.0,0.0112654]
[1767114121321,0.0112637,88877.0,88859.0,0.0112658]
[1767114121522,0.0114325,88877.0,88859.0,0.0114346]
[1767114122232,0.0001688,88877.0,88861.0,0.0112655]
[1767114122438,0.0001688,88877.0,88863.0,0.0112653]
[1767114122624,0.0001688,88877.0,88860.0,0.0112657]
[1767114124031,0.0112638,88876.0,88859.0,0.0001688]
[1767114125326,0.0001688,88877.0,88860.0,0.0112657]
[1767114126526,0.0001688,88877.0,88862.0,0.0112655]
[1767114126734,0.0001688,88877.0,88865.0,0.0112651]
[1767114127031,0.0001688,88877.0,88862.0,0.0112655]
[1767114127230,0.0001688,88877.0,88859.0,0.0001688]
[1767114128028,0.0001688,88877.0,88859.0,0.0958888]
[1767114128426,0.0001688,88877.0,88864.0,0.0112652]
[1767114128629,0.0001688,88877.0,88863.0,0.0112653]
[1767114129636,0.0001688,88877.0,88865.0,0.011265]
[1767114129825,0.0001688,88877.0,88859.0,0.0958888]
[1767114130025,0.08009364,88905.0,88859.0,0.0958888]
[1767114130229,0.0112628,88884.0,88868.0,0.0112646]
[1767114130436,0.02502042,88883.0,88868.0,0.0112646]
[1767114130837,0.0112633,88880.0,88859.0,0.09572]
[1767114131034,0.0001688,88878.0,88861.0,0.0001688]
[1767114131535,0.0112648,88868.0,88861.0,0.0001688]
[1767114132133,0.0112644,88871.0,88861.0,0.0001688]
[1767114132833,0.0112655,88863.0,88858.0,0.05664]
[1767114133023,0.0112651,88866.0,88858.0,0.05664]
[1767114133229,0.0112656,88862.0,88850.0,0.09572]
[1767114133429,0.0112656,88862.0,88848.0,0.09572]
[1767114133933,0.0112647,88869.0,88854.0,0.0112665]
[1767114134235,0.0112647,88869.0,88851.0,0.0112669]
[1767114134435,0.0112649,88867.0,88850.0,0.011267]
[1767114135438,0.0112649,88867.0,88852.0,0.0112667]
[1767114136039,0.0112645,88870.0,88852.0,0.0112667]
[1767114136238,0.0112648,88868.0,88852.0,0.0112667]
[1767114137034,0.0112652,88865.0,88848.0,0.09572]
[1767114137236,0.09572,88867.0,88834.0,0.08036391]
[1767114137452,0.0112667,88853.0,88836.0,0.09572]
[1767114137634,0.09572,88860.0,88836.0,0.15236]
[1767114138040,0.0112671,88850.0,88836.0,0.15236]
[1767114138228,0.0112675,88847.0,88836.0,0.15236]
[1767114139244,0.0112675,88847.0,88836.0,0.09572]
[1767114139545,0.011267,88851.0,88834.0,0.0001688]
[1767114140146,0.0112673,88848.0,88834.0,0.0001688]
[1767114140442,0.011267,88851.0,88834.0,0.0001688]